Cogmind - Beta 11.1 @@@ ROGUE MODE // 2022.05.18 @ 15:36:08 Player: ChromeKnight Result: Destroyed by Y-72 Warden with Quantum Rifle Performance ------------- Evolutions (9) 4500 Regions Visited (24) 4800 Robots Destroyed (126) 630 Value Destroyed (5962) 5962 Prototype IDs (91) 1820 Alien Tech Used (3) 600 Bonus (7302) 7302 TOTAL SCORE: 25614 Bonus ------- High Alert Combat Kills 108 Follower Combat Kills 640 Entered DSFs 500 Aligned with FarCom 300 Met Zhirov 300 Met Warlord at Base 500 MAIN.C Attacked Warlord 500 Met Warlord at Research 2000 Invited to Help at Command 2000 Scanned by Researcher 500 Friendly Fire -46 Cogmind --------- Core Integrity 0/1600 Matter 105/300 Energy 98/100 System Corruption 27% Temperature Cool (9) Movement Core (50) Location -1/Command Parts ------- > --- POWER (2) -------- (None) > --- PROPULSION (4) --- (None) > --- UTILITY (15) ----- Enhanced Optical Array Advanced Targeting Computer Advanced Targeting Computer Advanced Target Analyzer Advanced Target Analyzer > --- WEAPON (4) ------- (None) > --- INVENTORY (5) ---- Centrium Leg Advanced Heat Sink Peak State ------------ > --- POWER ------------ Reinforced Antimatter Reactor Light Quantum Reactor > --- PROPULSION ------- Biometal Leg Biometal Leg Centrium Leg Centrium Leg > --- UTILITY ---------- Advanced Cooling System Advanced Cooling System Medium Storage Unit Enhanced Optical Array Long-range Sensor Array Experimental Signal Interpreter Advanced Targeting Computer Experimental Core Analyzer Advanced Weapon Cycler Experimental Reaction Control System Advanced Phase Shifter Centrium Light Armor Plating SHELL Armor > --- WEAPON ----------- Enhanced Quantum Rifle Enhanced Quantum Rifle > --- INVENTORY -------- Biometal Leg Biometal Leg Biometal Leg Biometal Leg Advanced Cooling System Advanced Cooling System Improved Matter Compressor Dimensional Node Initializer Enhanced Quantum Rifle Enhanced Nova Cannon [Rating: 188] Favorites ----------- Power Heavy Antimatter Reactor Engine Improved Ion Engine Power Core Micro Fission Core Reactor Heavy Antimatter Reactor Propulsion Biometal Leg Treads Improved Treads Leg Biometal Leg Hover Unit Improved Antigrav System Flight Unit Flying Fortress v7 Utility Hacking Suite Device Advanced Weapon Cycler Storage Medium Storage Unit Processor Advanced Targeting Computer Hackware Hacking Suite Protection Improved Medium Armor Plating Weapon Smartbomb Launcher Energy Gun Enhanced Quantum Rifle Energy Cannon Guided Plasma Cannon Ballistic Gun Light Assault Rifle Ballistic Cannon Compact Linear Accelerator Launcher Smartbomb Launcher Special Weapon Enhanced Flamer Slashing Weapon Phasing Sabre Piercing Weapon Enhanced Force Lance Special Melee Weapon Dirty Datajack Build | -11 -10 -10 -10 -9 -8 -7 -7 -6 -6 -5 -5 -5 -5 -4 -4 -4 -4 -4 -3 -3 -2 -2 -1 -1 ------- Run | Scr Mat Min Exi Min Mat Fac Sto Fac DSF Fac Upp Upp Zhi Pro Fac Upp Upp War Pro Res Res Tes Acc Com Slots Evolved 18 | . . . . . 4 2 . 2 . 2 . . . . 2 . . . . 2 2 . 2 . Power 1 | . . . . . . . . . . 1 . . . . . . . . . . . . . . Propulsion 2 | . . . . . 2 . . . . . . . . . . . . . . . . . . . Utility 13 | . . . . . 2 2 . 2 . 1 . . . . 2 . . . . 2 2 . . . Weapon 2 | . . . . . . . . . . . . . . . . . . . . . . . 2 . Parts Attached 287 | 5 8 5 3 . 5 19 11 . 6 5 4 9 9 . 22 2 9 . 3 6 56 19 75 6 Power 25 | 1 1 1 . . . 1 . . 3 2 . . 1 . 2 1 . . 1 . 5 2 4 . Engine 8 | 1 1 1 . . . 1 . . 3 . . . . . . . . . 1 . . . . . Core 3 | . . . . . . . . . . 2 . . . . 1 . . . . . . . . . Reactor 14 | . . . . . . . . . . . . . 1 . 1 1 . . . . 5 2 4 . Propulsion 55 | 2 2 . 2 . . 4 . . . . . 1 2 . 2 . . . . . 17 6 15 2 Treads 6 | 2 2 . . . . . . . . . . . . . . . . . . . 1 . 1 . Leg 32 | . . . 2 . . 3 . . . . . . . . . . . . . . 15 6 6 . Wheel . | . . . . . . . . . . . . . . . . . . . . . . . . . Hover 8 | . . . . . . . . . . . . . . . . . . . . . 1 . 6 1 Flight 9 | . . . . . . 1 . . . . . 1 2 . 2 . . . . . . . 2 1 Utility 128 | 1 2 . . . 5 11 3 . 3 3 1 4 4 . 15 . . . 2 5 19 9 39 2 Device 47 | . . . . . 2 . 1 . 2 1 1 . 1 . 8 . . . 1 3 11 3 11 2 Storage 10 | 1 1 . . . . 1 . . . . . . 1 . 1 . . . . . . . 5 . Processor 25 | . 1 . . . . 1 . . . . . 1 . . 3 . . . . 1 2 2 14 . Hackware 6 | . . . . . . 3 . . . 1 . . 1 . . . . . . . . . 1 . Protection 40 | . . . . . 3 6 2 . 1 1 . 3 1 . 3 . . . 1 1 6 4 8 . Artifact . | . . . . . . . . . . . . . . . . . . . . . . . . . Weapon 79 | 1 3 4 1 . . 3 8 . . . 3 4 2 . 3 1 9 . . 1 15 2 17 2 Energy Gun 12 | . . . . . . . . . . . . . . . . . . . . . 8 1 3 . Energy Cannon 7 | . . . 1 . . . 2 . . . . . . . . . . . . . . 1 3 . Ballistic Gun 13 | 1 1 3 . . . . . . . . . . . . 2 . 3 . . . . . 3 . Ballistic Cannon 1 | . . . . . . . . . . . . . . . . . . . . . 1 . . . Launcher 24 | . 2 1 . . . 2 6 . . . 2 1 1 . . 1 3 . . 1 1 . 2 1 Special Weapon 5 | . . . . . . . . . . . . . . . . . . . . . 3 . 2 . Impact Weapon . | . . . . . . . . . . . . . . . . . . . . . . . . . Slashing Weapon 10 | . . . . . . 1 . . . . 1 1 1 . 1 . 3 . . . 1 . 1 . Piercing Weapon 5 | . . . . . . . . . . . . . . . . . . . . . 1 . 3 1 Special Melee Weapon 2 | . . . . . . . . . . . . 2 . . . . . . . . . . . . Unidentified Prototypes 25 | . . . . . . . 4 . . 1 . . 5 . 2 . . . . . 8 4 1 . Corrupted Parts 1 | . . . . . . . . . . . . . . . . . . . . . . . 1 . System Corruption 10 | . . . . . . . . . . . . . . . . . . . . . . . 10 . Parts Lost 74 | . . 1 . . 1 . . . . 1 . 2 . 2 1 . . 1 . . 11 14 32 8 Power 7 | . . . . . . . . . . . . . . . . . . . . . 2 2 2 1 Propulsion 17 | . . . . . . . . . . . . . . . . . . . . . 2 4 9 2 Utility 40 | . . . . . . . . . . 1 . 2 . 1 1 . . 1 . . 6 7 18 3 Weapon 10 | . . 1 . . 1 . . . . . . . . 1 . . . . . . 1 1 3 2 Highest Loss Streak 9 | . . 1 . . 1 . . . . 1 . 1 . 2 1 . . 1 . . 5 9 9 5 To Critical Strikes 2 | . . . . . . . . . . . . . . . . . . . . . 1 1 . . Average Slot Usage (%) 79 | . 94 99 99 100 74 85 75 . 71 72 73 65 66 68 75 74 75 72 74 75 82 87 76 33 Engine 3 | . 14 14 14 14 9 7 7 . 6 3 . . . . . . . . 1 4 1 . . . Reactor 3 | . . . . . . . . . . . . . 3 5 5 5 5 5 5 4 6 7 4 1 Treads 3 | . 28 28 17 . . . . . . . . . . . . . . . . . . . . . Leg 5 | . . . 9 28 18 19 . . . . . . . . . . . . . . 10 16 4 . Flight 2 | . . . . . . 1 7 . 6 5 5 4 4 5 5 5 5 5 5 4 . . 2 . Device 12 | . . . . . 7 5 4 . 4 11 13 10 4 5 16 21 21 20 15 15 24 20 8 1 Storage 6 | . 14 14 14 14 9 7 7 . 6 5 5 5 5 5 5 5 5 5 5 4 4 4 5 3 Processor 12 | . 9 14 14 14 9 5 . . . . . 3 5 5 7 5 5 5 5 8 9 18 34 21 Hackware 8 | . . . . . . 6 23 . 20 18 17 17 19 23 17 15 15 15 15 14 8 . 3 . Protection 7 | . . . . . 5 20 9 . 13 10 11 9 13 10 7 10 10 10 15 14 8 9 3 3 Energy Cannon 2 | . . . 4 14 9 7 7 . 6 5 . . . . . . . . . . . 2 3 . Ballistic Gun 2 | . 14 15 9 . . . . . . . . . . . 4 1 2 . . . . . . . Launcher 3 | . 13 12 14 14 6 1 6 . 6 5 3 3 3 4 . 3 2 5 5 4 . . . . Naked Turns . | . . . . . . . . . . . . . . . . . . . . . . . . . Heaviest Build 128 | 10 32 31 40 40 51 57 50 45 50 50 50 49 52 49 59 59 59 58 61 65 96 128 84 20 Greatest Support 116 | 40 46 46 60 60 60 98 62 50 50 50 50 50 50 50 66 66 66 66 66 66 114 116 112 15 Greatest Overweight (x) 18 | 3 . . 10 . . . . . . . . . 17 . 3 . . . . . 3 12 18 1 Average Overweight (x) . | . . . . . . . . . . . . . . . . . . . . . . . . . Largest Inventory Capacity 15 | 8 15 15 15 15 15 15 10 10 10 10 10 10 10 10 10 10 10 10 10 10 10 10 10 10 Average Capacity 10 | 7 11 15 15 15 15 13 10 10 10 10 10 10 10 10 10 10 10 10 10 10 10 10 8 5 Most Carried 15 | 2 15 15 15 15 15 15 10 10 10 10 10 10 10 10 10 10 10 10 10 10 10 10 10 5 Average Carried 9 | 1 8 14 14 15 14 13 9 10 9 10 8 8 9 10 9 9 9 10 9 9 8 9 6 2 Final Capacity 15 | 8 15 15 15 15 15 10 10 10 10 10 10 10 10 10 10 10 10 10 10 10 10 10 10 5 Final Carried 15 | 2 15 15 15 15 15 10 10 10 10 10 8 10 10 10 9 10 10 10 10 8 10 10 5 2 Class Distribution -------------------- 39% | Hacker-Mutant 28% | Mutant 14% | Scavenger-Mutant 10% | Scavenger-Skirmisher 4% | Commander-Mutant Dominant Class ---------------- Mutant | -10/Materials Mutant | -10/Mines Mutant | -10/Exiles Mutant | -9/Mines Mutant | -8/Materials Mutant | -7/Factory Commander-Mutant | -7/Storage Commander-Mutant | -6/Factory Hacker-Mutant | -6/DSF Hacker-Mutant | -5/Factory Hacker-Mutant | -5/Upper Caves Hacker-Mutant | -5/Upper Caves Hacker-Mutant | -5/Zhirov Hacker-Mutant | -4/Proximity Caves Hacker-Mutant | -4/Factory Hacker-Mutant | -4/Upper Caves Hacker-Mutant | -4/Upper Caves Hacker-Mutant | -4/Warlord Hacker-Mutant | -3/Proximity Caves Hacker-Mutant | -3/Research Scavenger-Skirmisher | -2/Research Scavenger-Skirmisher | -2/Testing Scavenger-Mutant | -1/Access Mutant | -1/Command Resources | -11 -10 -10 -10 -9 -8 -7 -7 -6 -6 -5 -5 -5 -5 -4 -4 -4 -4 -4 -3 -3 -2 -2 -1 -1 ----------- Run | Scr Mat Min Exi Min Mat Fac Sto Fac DSF Fac Upp Upp Zhi Pro Fac Upp Upp War Pro Res Res Tes Acc Com Matter Collected 4929 | 229 64 294 . 30 40 69 293 . 50 20 435 107 445 105 190 55 473 33 126 . 1092 244 535 . Remotely . | . . . . . . . . . . . . . . . . . . . . . . . . . Salvage Created 5071 | . 157 102 . . 343 350 67 . . 20 460 172 326 . 108 47 190 . 147 83 177 1209 846 267 Parts 233 | . 15 15 . . 16 16 . . . . 11 6 2 . 6 9 10 . 8 5 3 59 47 5 Haulers Intercepted 3 | . 1 . . . . . . . . . . . . . . . 1 . . . . . 1 . Recyclers Shooed 3 | . . . . . . . . . . 1 . . . . . . . . . . . 1 1 . Parts Field Recycled . | . . . . . . . . . . . . . . . . . . . . . . . . . Retrieved Matter . | . . . . . . . . . . . . . . . . . . . . . . . . . Parts Self-Destructed 35 | . . . . . . . . . . . 9 11 2 . . 5 6 . 2 . . . . . Prevented 6 | . . . . . . . . . . . . 2 . . . 1 1 . 2 . . . . . Kills | -11 -10 -10 -10 -9 -8 -7 -7 -6 -6 -5 -5 -5 -5 -4 -4 -4 -4 -4 -3 -3 -2 -2 -1 -1 ------- Run | Scr Mat Min Exi Min Mat Fac Sto Fac DSF Fac Upp Upp Zhi Pro Fac Upp Upp War Pro Res Res Tes Acc Com Combat Hostiles Destroyed 102 | . 4 9 . . 5 7 1 . . 2 9 6 . . 1 8 9 . 8 3 3 13 11 3 Melee 6 | . . . . . . . . . . . . 1 . . 1 . . . . . . . 4 . Guns 10 | . 2 2 . . . . . . . . . . . . . . . . . . 1 4 1 . Cannons 19 | . . . . . 5 4 . . . . . . . . . . . . . . . 7 3 . AOE 63 | . 2 7 . . . 3 . . . 2 9 5 . . . 8 9 . 8 3 2 . 2 3 Classes Destroyed 15 | . 5 1 . . 1 3 . . . . . 2 . . . . . . . 1 . 2 . . Worker 5 | . 2 . . . . . . . . . . . . . . . . . . . 1 1 1 . Builder 1 | . . . . . . . . . . . . . . . . . . . . 1 . . . . Hauler 3 | . 1 . . . . . . . . . . . . . . . 1 . . . . . 1 . Recycler 3 | . . 1 . . . . . . . . . . . . . . . . . . 1 . . 1 Operator 3 | . . . . . . 1 . . . . . . . . . . . . . 1 . . . 1 Watcher 6 | . 1 . . . 2 1 . . . . . . . . 1 . . . . . . . 1 . Swarmer 38 | . 3 9 . . . . . . . . 1 1 . . . 8 5 . 8 3 . . . . Grunt 25 | . 1 . . . 1 4 . . . 2 7 1 . . 1 . 4 . . . . . 1 3 Brawler 1 | . . . . . . 1 . . . . . . . . . . . . . . . . . . Researcher 3 | . . . . . . . . . . . . . . . . . . . . . . 3 . . Sentry 9 | . . . . . 4 1 1 . . . 1 1 . . . . . . . . 1 . . . Hunter 11 | . . . . . . . . . . . . 2 . . . . . . . . 2 5 2 . Programmer 13 | . . . . . . 1 . . . . . . . . . . . . . . . 5 7 . Q-Series 3 | . . . . . . . . . . . . . . . . . . . . . . 2 1 . Decomposer 1 | . . . . . . . . . . . 1 . . . . . . . . . . . . . Packrat 3 | . . . . . . . . . . . 3 . . . . . . . . . . . . . Master Thief 1 | . . . . . . . . . . . . 1 . . . . . . . . . . . . Wasp 1 | . . . . . . . . . . . . . . . . . . . . . . 1 . . Best Kill Streak 6 | . 5 6 . . 2 3 1 . . 2 5 5 . . 1 4 5 . 5 3 4 4 3 5 Combat Bots Only 6 | . 3 6 . . 2 3 1 . . 2 5 5 . . 1 4 5 . 5 3 3 4 3 3 Max Kills in Single Turn 4 | . 3 2 . . 1 2 1 . . 2 2 1 . . 1 3 4 . 4 2 2 2 1 3 Gunslinging . | . . . . . . . . . . . . . . . . . . . . . . . . . Exploded 4 | . 2 2 . . . 2 . . . 2 2 1 . . . 3 4 . 4 2 1 . 1 2 Melee 1 | . . . . . . . . . . . . 1 . . 1 . . . . . . . 1 . Uniques/NPCs Destroyed . | . . . . . . . . . . . . . . . . . . . . . . . . . Combat | -11 -10 -10 -10 -9 -8 -7 -7 -6 -6 -5 -5 -5 -5 -4 -4 -4 -4 -4 -3 -3 -2 -2 -1 -1 -------- Run | Scr Mat Min Exi Min Mat Fac Sto Fac DSF Fac Upp Upp Zhi Pro Fac Upp Upp War Pro Res Res Tes Acc Com Damage Taken 18670 | . 91 385 . . 91 858 94 . 70 226 134 330 . 209 148 40 . 102 28 279 2721 6744 4955 1165 Core 2894 | . 3 55 . . 30 91 . . . . 12 17 . . . . . 34 . . 419 630 964 639 Absorbed by Shields . | . . . . . . . . . . . . . . . . . . . . . . . . . Redirected to Shielding 1207 | . . . . . . . 3 . . 26 34 37 . 83 . . . . . 18 147 . 759 100 Regen/Repaired (Parts) 2076 | . . . . . . . . . . 64 . . . . . . . . . . . 2012 . . Core Remaining (%) 85 | 100 . . . 76 94 . 87 . 100 . . . . 97 . . . . 97 100 . 21 . . Volleys Fired 341 | . 12 30 . . 22 25 7 . 2 8 24 11 . 7 . 12 15 . 6 6 32 78 42 2 Largest 4 | . 2 2 . . 1 1 1 . 1 1 1 1 . 1 . 1 1 . 1 1 1 2 4 1 Hottest 298 | . 50 50 . . 120 120 120 . 120 36 39 39 . 39 . 46 46 . 46 46 46 185 298 52 Shots Fired 448 | . 16 39 . . 22 25 7 . 2 8 24 11 . 7 . 12 15 . 6 6 32 140 74 2 Gun 188 | . 12 30 . . . . . . . . . . . . . . 1 . . . 25 75 45 . Cannon 142 | . . . . . 22 21 7 . 2 . . . . . . . . . . . . 65 25 . Launcher 118 | . 4 9 . . . 4 . . . 8 24 11 . 7 . 12 14 . 6 6 7 . 4 2 Special . | . . . . . . . . . . . . . . . . . . . . . . . . . Kinetic 82 | . 12 30 . . . . . . . . . . . . . . 1 . . . . . 39 . Thermal 222 | . . . . . 22 21 7 . 2 . . . . . . . . . . . . 140 30 . Explosive 118 | . 4 9 . . . 4 . . . 8 24 11 . 7 . 12 14 . 6 6 7 . 4 2 Electromagnetic 1 | . . . . . . . . . . . . . . . . . . . . . . . 1 . Entropic 25 | . . . . . . . . . . . . . . . . . . . . . 25 . . . Robot Hit Streak 44 | . 10 8 . . 4 24 . . 3 5 8 11 . . . 14 . . 15 19 23 44 27 17 Robot Miss Streak 3 | . 1 3 . . . 1 . . . 3 . . . . . . . . . . 1 2 1 . Penetration Max 1 | . . . . . . . . . . . . . . . . . . . . . . . 1 . Secondary Targets . | . . . . . . . . . . . . . . . . . . . . . . . . . Shots Hit Robots 307 | . 13 24 . . 4 22 . . 1 4 10 7 10 . 4 3 3 . 1 4 28 107 59 3 Core Hits 248 | . 11 14 . . 6 18 . . 1 9 30 13 2 4 2 9 18 . 11 10 17 37 26 10 Critical Kills 5 | . . . . . . . . . . . . . . . . . . . . . . . 5 . Critical Parts Destroyed 12 | . . . . . . . . . . . . . . . . . . . . . 1 . 11 . Critical Strikes 19 | . . . . . . . . . . . . . . . . . . . . . 2 . 17 . Meltdown 2 | . . . . . . . . . . . . . . . . . . . . . . . 2 . Destroy 14 | . . . . . . . . . . . . . . . . . . . . . . . 14 . Sever 1 | . . . . . . . . . . . . . . . . . . . . . 1 . . . Impale 1 | . . . . . . . . . . . . . . . . . . . . . . . 1 . Detonate 1 | . . . . . . . . . . . . . . . . . . . . . 1 . . . Melee Attacks 90 | . . . . . . . . . . . 4 9 10 . 22 . 12 . . . 6 . 17 10 Impact . | . . . . . . . . . . . . . . . . . . . . . . . . . Slashing 61 | . . . . . . . . . . . 4 7 10 . 22 . 12 . . . 6 . . . Piercing 29 | . . . . . . . . . . . . 2 . . . . . . . . . . 17 10 Sneak Attacks 1 | . . . . . . . . . . . 1 . . . . . . . . . . . . . Combat Hostiles . | . . . . . . . . . . . . . . . . . . . . . . . . . Follow-up Attacks 1 | . . . . . . . . . . . . . . . . . . . . . . . 1 . Damage Inflicted 20078 | . 285 739 . . 763 1354 77 . 70 531 1737 785 857 204 203 1114 1541 . 872 630 1534 3700 2066 1016 Guns 3599 | . 138 167 . . . . . . . . . . . . . . . . . . 745 1782 767 . Cannons 4243 | . . . . . 763 792 77 . 70 . . . . . . . . . . . . 1884 657 . Explosions 10011 | . 147 572 . . . 499 . . . 531 1521 656 . 204 . 1114 1407 . 872 628 629 . 271 960 Melee 2126 | . . . . . . . . . . . 216 129 857 . 203 . 134 . . . 160 . 371 56 Ramming 99 | . . . . . . 63 . . . . . . . . . . . . . 2 . 34 . . Kinetic 980 | . 138 167 . . . . . . . . . . . . . . . . . . . . 675 . Thermal 6174 | . . . . . 763 792 77 . 70 . . . . . . . . . . . 57 3666 749 . Explosive 9954 | . 147 572 . . . 499 . . . 531 1521 656 . 204 . 1114 1407 . 872 628 572 . 271 960 Electromagnetic . | . . . . . . . . . . . . . . . . . . . . . . . . . Impact . | . . . . . . . . . . . . . . . . . . . . . . . . . Slashing 1698 | . . . . . . . . . . . 216 128 857 . 203 . 134 . . . 160 . . . Piercing 428 | . . . . . . . . . . . . 1 . . . . . . . . . . 371 56 Entropic 745 | . . . . . . . . . . . . . . . . . . . . . 745 . . . Highest Corruption 39 | . . . . . 2 1 1 . . . . . . . . . . . . . 2 39 27 27 Average Corruption 7 | . . . . . 2 1 1 . . . . . . . . . . . . . 2 5 12 27 Corruption Purged . | . . . . . . . . . . . . . . . . . . . . . . . . . Corruption Blocked 40 | . . . . . . . . . . . . . . . . . . . . . 40 . . . Effects 90 | . . . . . 1 1 3 . . . . . . . . . . . . . 2 29 42 12 Message Errors 17 | . . . . . 1 . . . . . . . . . . . . . . . 1 5 4 6 Matter Fused 25 | . . . . . . 1 1 . . . . . . . . . . . . . 1 9 11 2 Heat Flow Errors 8 | . . . . . . . . . . . . . . . . . . . . . . 5 3 . Energy Discharges 9 | . . . . . . . 1 . . . . . . . . . . . . . . 1 6 1 Parts Rejected 4 | . . . . . . . . . . . . . . . . . . . . . . 2 . 2 Data Loss (minor) 13 | . . . . . . . 1 . . . . . . . . . . . . . . 3 9 . Alerts 4 | . . . . . . . . . . . . . . . . . . . . . . . 4 . Misdirections 7 | . . . . . . . . . . . . . . . . . . . . . . 3 3 1 Weapon Failures 3 | . . . . . . . . . . . . . . . . . . . . . . 1 2 . Overload Shots . | . . . . . . . . . . . . . . . . . . . . . . . . . Overflow Damage 975 | . 17 12 . . 16 6 . . . . 121 38 246 . 13 134 83 . 2 17 . 36 106 128 Projectiles 54 | . . . . . 16 2 . . . . . . . . . . . . . . . 36 . . Explosions 483 | . 17 12 . . . 4 . . . . 67 19 . . . 134 83 . 2 17 . . . 128 Melee 438 | . . . . . . . . . . . 54 19 246 . 13 . . . . . . . 106 . Knockbacks 2 | . . . . . . 1 . . . . . . . . . . . . . . . 1 . . Impact 2 | . . . . . . 1 . . . . . . . . . . . . . . . 1 . . Kinetic . | . . . . . . . . . . . . . . . . . . . . . . . . . Secondary . | . . . . . . . . . . . . . . . . . . . . . . . . . Self-Inflicted Damage 831 | . 61 83 . . . 51 . . . 71 21 . . . . 22 . . . 71 69 . 198 184 Shots 21 | . 3 4 . . . 2 . . . 2 2 . . . . 1 . . . 2 1 . 2 2 Rammed 1 | . . . . . . . . . . . . . . . . . . . . 1 . . . . Targets Rammed 9 | . . . . . . 5 . . . . . . . . . . . . . 1 . 3 . . Kicked 8 | . . . . . . 5 . . . . . . . . . . . . . . . 3 . . Crushed . | . . . . . . . . . . . . . . . . . . . . . . . . . Highest Temperature 378 | . . 24 . . 378 317 186 . 77 . . . . . . 65 65 . 63 96 302 362 259 8 Average Temperature 93 | . . 5 . . 120 125 59 . 46 . . . . . . 28 23 . 26 40 147 103 101 8 Received Heat Transfer 1047 | . 12 . . . 36 312 24 . 9 72 39 54 . 21 . . . . 9 21 135 24 90 189 Effects 4 | . . . . . . . . . . . . . . . . . . . . . . 4 . . Interference 3 | . . . . . . . . . . . . . . . . . . . . . . 3 . . Short Circuit 1 | . . . . . . . . . . . . . . . . . . . . . . 1 . . Siege Activations . | . . . . . . . . . . . . . . . . . . . . . . . . . Robots Corrupted . | . . . . . . . . . . . . . . . . . . . . . . . . . Combat Hostiles . | . . . . . . . . . . . . . . . . . . . . . . . . . Parts Fried 1 | . . . . . . . . . . . . . . . . . . . . . . 1 . . Impact Corruptions . | . . . . . . . . . . . . . . . . . . . . . . . . . Robots Melted 7 | . . . . . 1 . 1 . . . . . . . . . . . . . . 3 2 . Combat Hostiles 4 | . . . . . . . 1 . . . . . . . . . . . . . . 2 1 . Parts Melted 36 | . . . . . 2 8 1 . . . . . . . . . . . . . . 23 2 . Heat Transferred 8429 | . . . . . 1680 1680 160 . 160 . . . . . . . . . . . 50 3996 703 . Parts Sabotaged . | . . . . . . . . . . . . . . . . . . . . . . . . . Parts Stolen 4 | . . . . . . . . . . . . 4 . . . . . . . . . . . . Parts Stripped . | . . . . . . . . . . . . . . . . . . . . . . . . . Power Chain Reactions . | . . . . . . . . . . . . . . . . . . . . . . . . . Missiles Intercepted 6 | . . . . . . . . . . . . . . . . . . . . . 6 . . . Alert | -11 -10 -10 -10 -9 -8 -7 -7 -6 -6 -5 -5 -5 -5 -4 -4 -4 -4 -4 -3 -3 -2 -2 -1 -1 ------- Run | Scr Mat Min Exi Min Mat Fac Sto Fac DSF Fac Upp Upp Zhi Pro Fac Upp Upp War Pro Res Res Tes Acc Com Peak Influence 768 | . 201 405 . . 271 434 763 346 339 244 . . . . 252 . . . . 584 768 311 396 368 Initial 346 | . . 16 . . . 123 196 346 242 164 . . . . 9 . . . . 131 328 195 74 142 Average 249 | . 112 221 . . 126 274 447 346 266 191 . . . . 115 . . . . 287 550 209 132 272 Maximum Alert Level 3 | . 1 2 . . 1 2 3 1 1 1 . . . . 1 . . . . 2 3 1 1 1 Low Security (%) 41 | 100 52 9 . 100 80 21 3 . . 79 . . . . 79 . . . . 38 . 51 68 35 Level 1 39 | . 47 85 . . 19 52 47 100 100 20 . . . . 20 . . . . 26 13 48 31 64 Level 2 15 | . . 5 . . . 25 39 . . . . . . . . . . . . 35 67 . . . Level 3 3 | . . . . . . . 9 . . . . . . . . . . . . . 18 . . . Level 4 . | . . . . . . . . . . . . . . . . . . . . . . . . . Level 5 . | . . . . . . . . . . . . . . . . . . . . . . . . . High Security . | . . . . . . . . . . . . . . . . . . . . . . . . . Max Security . | . . . . . . . . . . . . . . . . . . . . . . . . . Sterilizations 1 | . . . . . . . . . 1 . . . . . . . . . . . . . . . Squads Dispatched 46 | . 2 . . . . 6 2 . . 2 . . . . 2 . . . . 1 1 11 18 1 Investigation 9 | . 2 . . . . . 2 . . 1 . . . . 2 . . . . 1 . . 1 . Extermination 11 | . . . . . . 1 . . . . . . . . . . . . . . . 4 6 . Reinforcement 17 | . . . . . . 2 . . . 1 . . . . . . . . . . 1 7 5 1 Assault . | . . . . . . . . . . . . . . . . . . . . . . . . . Garrison 9 | . . . . . . 3 . . . . . . . . . . . . . . . . 6 . Intercept . | . . . . . . . . . . . . . . . . . . . . . . . . . Searches Triggered . | . . . . . . . . . . . . . . . . . . . . . . . . . Construction Impeded . | . . . . . . . . . . . . . . . . . . . . . . . . . Haulers Reinforced . | . . . . . . . . . . . . . . . . . . . . . . . . . Active Scanning Responses . | . . . . . . . . . . . . . . . . . . . . . . . . . Cargo Convoy Interrupts . | . . . . . . . . . . . . . . . . . . . . . . . . . Stealth | -11 -10 -10 -10 -9 -8 -7 -7 -6 -6 -5 -5 -5 -5 -4 -4 -4 -4 -4 -3 -3 -2 -2 -1 -1 --------- Run | Scr Mat Min Exi Min Mat Fac Sto Fac DSF Fac Upp Upp Zhi Pro Fac Upp Upp War Pro Res Res Tes Acc Com Distress Signals 19 | . 1 . . . 3 . . . . . . . . . 1 . . . . . 9 4 1 . Communications Jammed . | . . . . . . . . . . . . . . . . . . . . . . . . . Distress Signals . | . . . . . . . . . . . . . . . . . . . . . . . . . Times Spotted 271 | . 8 9 . . 7 15 17 . 11 6 8 10 . 5 8 6 1 9 3 24 27 31 55 11 Peak Tracking Total 13 | . 3 6 . . 5 6 3 . 4 3 5 5 . 5 9 4 5 9 1 11 7 8 13 7 Tactical Retreats 43 | . 1 . . . 2 2 1 . . . . . . 2 3 5 2 . 1 5 6 1 10 2 Traps | -11 -10 -10 -10 -9 -8 -7 -7 -6 -6 -5 -5 -5 -5 -4 -4 -4 -4 -4 -3 -3 -2 -2 -1 -1 ------- Run | Scr Mat Min Exi Min Mat Fac Sto Fac DSF Fac Upp Upp Zhi Pro Fac Upp Upp War Pro Res Res Tes Acc Com Traps Triggered 10 | . 4 . . . 3 1 . . . 1 . . . . . . . . . . . . 1 . Indirectly . | . . . . . . . . . . . . . . . . . . . . . . . . . Trap Hack Attempts . | . . . . . . . . . . . . . . . . . . . . . . . . . Triggered . | . . . . . . . . . . . . . . . . . . . . . . . . . Disarmed . | . . . . . . . . . . . . . . . . . . . . . . . . . Reprogrammed . | . . . . . . . . . . . . . . . . . . . . . . . . . Reused . | . . . . . . . . . . . . . . . . . . . . . . . . . Traps Extracted . | . . . . . . . . . . . . . . . . . . . . . . . . . Installed . | . . . . . . . . . . . . . . . . . . . . . . . . . Triggered 14 | . . . . . . . . . . . 1 1 . . . . 1 10 1 . . . . . Machines | -11 -10 -10 -10 -9 -8 -7 -7 -6 -6 -5 -5 -5 -5 -4 -4 -4 -4 -4 -3 -3 -2 -2 -1 -1 ---------- Run | Scr Mat Min Exi Min Mat Fac Sto Fac DSF Fac Upp Upp Zhi Pro Fac Upp Upp War Pro Res Res Tes Acc Com Machines Disabled 23 | . 1 . . . . 6 4 . . . . . . . . . 1 . . 1 2 5 1 2 Max in Single Turn 4 | . 1 . . . . 4 1 . . . . . . . . . 1 . . 1 1 1 1 1 Garrison Access 5 | . . . . . . 1 1 . . . . . . . 1 . . . . 1 1 . . . Machines Sabotaged . | . . . . . . . . . . . . . . . . . . . . . . . . . Garrisons Compromised . | . . . . . . . . . . . . . . . . . . . . . . . . . Overloaded Fab Kills . | . . . . . . . . . . . . . . . . . . . . . . . . . Hacking | -11 -10 -10 -10 -9 -8 -7 -7 -6 -6 -5 -5 -5 -5 -4 -4 -4 -4 -4 -3 -3 -2 -2 -1 -1 --------- Run | Scr Mat Min Exi Min Mat Fac Sto Fac DSF Fac Upp Upp Zhi Pro Fac Upp Upp War Pro Res Res Tes Acc Com Machines Accessed 61 | . 2 . 1 . 1 4 7 1 . 6 . 1 5 1 7 1 1 9 . 5 3 4 2 . Terminals 27 | . 2 . . . 1 1 6 1 . 3 . . . 1 4 1 . . . 2 . 4 1 . Fabricators 7 | . . . . . . 1 . . . 1 . . . . 2 . . . . 2 1 . . . Repair Stations 1 | . . . . . . . . . . 1 . . . . . . . . . . . . . . Recycling Units . | . . . . . . . . . . . . . . . . . . . . . . . . . Scanalyzers 2 | . . . . . . . . . . 1 . . . . . . . . . . 1 . . . Garrison Access 7 | . . . . . . 2 1 . . . . . . . 1 . . . . 1 1 . 1 . Total Hacks 153 | . 4 . 1 . 4 9 13 1 . 23 . 1 18 1 19 1 1 29 . 8 10 6 4 . Successful 110 | . 2 . 1 . 3 3 6 1 . 15 . 1 18 1 11 1 1 29 . 5 8 3 1 . Failed 43 | . 2 . . . 1 6 7 . . 8 . . . . 8 . . . . 3 2 3 3 . Catastrophic 6 | . . . . . . 1 . . . . . . . . 3 . . . . . 1 1 . . Database Lockouts . | . . . . . . . . . . . . . . . . . . . . . . . . . Manual 52 | . 4 . 1 . 4 3 4 . . 14 . . . . 13 . . . . 4 2 3 . . Terminals 62 | . 4 . . . 4 2 10 1 . 14 . . . 1 13 1 . . . 4 . 6 2 . Fabricators 17 | . . . . . . 5 . . . 3 . . . . 4 . . . . 3 2 . . . Repair Stations 2 | . . . . . . . . . . 2 . . . . . . . . . . . . . . Recycling Units . | . . . . . . . . . . . . . . . . . . . . . . . . . Scanalyzers 11 | . . . . . . . . . . 4 . . . . . . . . . . 7 . . . Garrison Access 11 | . . . . . . 2 3 . . . . . . . 2 . . . . 1 1 . 2 . Terminal Hacks 68 | . 2 . 1 . 1 . 5 1 . 3 . 1 18 1 1 1 1 29 . . . 2 1 . Record 20 | . . . . . . . . . . . . . 6 1 . 1 1 11 . . . . . . Part Schematic 8 | . . . . . 1 . . . . 3 . . 4 . . . . . . . . . . . Robot Schematic 2 | . . . . . . . 2 . . . . . . . . . . . . . . . . . Robot Analysis 4 | . . . . . . . . . . . . . 4 . . . . . . . . . . . Prototype ID Bank 20 | . . . . . . . . . . . . . 4 . . . . 16 . . . . . . Open Door 8 | . . . . . . . 3 . . . . 1 . . . . . 2 . . . 1 1 . Open DSF 1 | . . . . . . . . 1 . . . . . . . . . . . . . . . . Branch Access Points 1 | . . . . . . . . . . . . . . . 1 . . . . . . . . . Recall Investigation 2 | . 2 . . . . . . . . . . . . . . . . . . . . . . . Recall Reinforcements 1 | . . . . . . . . . . . . . . . . . . . . . . 1 . . EX-Prototype ID Bank 1 | . . . 1 . . . . . . . . . . . . . . . . . . . . . Fabricator Hacks 9 | . . . . . . 1 . . . 2 . . . . 4 . . . . 2 . . . . Load Schematic 4 | . . . . . . . . . . 1 . . . . 2 . . . . 1 . . . . Build 5 | . . . . . . 1 . . . 1 . . . . 2 . . . . 1 . . . . Repair Station Hacks 2 | . . . . . . . . . . 2 . . . . . . . . . . . . . . Scan Component 1 | . . . . . . . . . . 1 . . . . . . . . . . . . . . Repair 1 | . . . . . . . . . . 1 . . . . . . . . . . . . . . Recycling Unit Hacks . | . . . . . . . . . . . . . . . . . . . . . . . . . Scanalyzer 9 | . . . . . . . . . . 3 . . . . . . . . . . 6 . . . Insert Component 6 | . . . . . . . . . . 2 . . . . . . . . . . 4 . . . Analyze 3 | . . . . . . . . . . 1 . . . . . . . . . . 2 . . . Garrison Access Hacks 5 | . . . . . . 1 1 . . . . . . . 1 . . . . 1 1 . . . Seal Access 5 | . . . . . . 1 1 . . . . . . . 1 . . . . 1 1 . . . Unauthorized Hacks 17 | . . . . . 2 1 . . . 5 . . . . 5 . . . . 2 1 1 . . Terminals 14 | . . . . . 2 . . . . 5 . . . . 5 . . . . 1 . 1 . . Track 4 | . . . . . 1 . . . . 2 . . . . 1 . . . . . . . . . Assimilate 2 | . . . . . . . . . . . . . . . . . . . . 1 . 1 . . Botnet 6 | . . . . . 1 . . . . 2 . . . . 3 . . . . . . . . . Operators 2 | . . . . . . . . . . 1 . . . . 1 . . . . . . . . . Fabricators 3 | . . . . . . 1 . . . . . . . . . . . . . 1 1 . . . Prioritize 1 | . . . . . . 1 . . . . . . . . . . . . . . . . . . Fabnet 2 | . . . . . . . . . . . . . . . . . . . . 1 1 . . . Repair Stations . | . . . . . . . . . . . . . . . . . . . . . . . . . Recycling Units . | . . . . . . . . . . . . . . . . . . . . . . . . . Scanalyzers . | . . . . . . . . . . . . . . . . . . . . . . . . . Garrison Access . | . . . . . . . . . . . . . . . . . . . . . . . . . Data Cores Recovered 3 | . . . . . . . 2 . . . . . . . . . . . . 1 . . . . Used 2 | . . . . . . . 1 . . . . . . . . . . . . 1 . . . . Hacking Detections 26 | . . . . . 1 3 2 . . 5 . . . . 5 . . . . 3 2 3 2 . Full Trace Events 5 | . . . . . . . . . . 1 . . . . 2 . . . . 1 . . 1 . Feedback Events 1 | . . . . . . . . . . . . . . . . . . . . . . . 1 . Hackware Fried 1 | . . . . . . . . . . . . . . . . . . . . . . . 1 . Feedback Blocked . | . . . . . . . . . . . . . . . . . . . . . . . . . Robot Schematics Acquired 4 | . . . . . . . 2 . . . . . . . . . . . . . . 2 . . Robots Built 5 | . . . . . . 3 . . . 2 . . . . . . . . . . . . . . Authchips . | . . . . . . . . . . . . . . . . . . . . . . . . . Time 192 | . . . . . . 134 . . . 58 . . . . . . . . . . . . . . Total Robot Build Rating 18 | . . . . . . 12 . . . 6 . . . . . . . . . . . . . . Part Schematics Acquired 18 | . . . . . 1 . . . . 4 . . 4 . . . . . . . 1 8 . . Parts Built 3 | . . . . . . . . . . . . . . . 1 . . . . 2 . . . . Authchips . | . . . . . . . . . . . . . . . . . . . . . . . . . Time 239 | . . . . . . . . . . . . . . . 186 . . . . 53 . . . . Total Part Build Rating 19 | . . . . . . . . . . . . . . . 7 . . . . 12 . . . . Parts Repaired 1 | . . . . . . . . . . 1 . . . . . . . . . . . . . . Time 44 | . . . . . . . . . . 44 . . . . . . . . . . . . . . Parts Recycled . | . . . . . . . . . . . . . . . . . . . . . . . . . Recycled Matter . | . . . . . . . . . . . . . . . . . . . . . . . . . Retrieved Matter . | . . . . . . . . . . . . . . . . . . . . . . . . . Retrieved Components . | . . . . . . . . . . . . . . . . . . . . . . . . . Parts Scanalyzed 2 | . . . . . . . . . . 1 . . . . . . . . . . 1 . . . Part Schematics Acquired 2 | . . . . . . . . . . 1 . . . . . . . . . . 1 . . . Parts Damaged 1 | . . . . . . . . . . . . . . . . . . . . . 1 . . . Bothacking | -11 -10 -10 -10 -9 -8 -7 -7 -6 -6 -5 -5 -5 -5 -4 -4 -4 -4 -4 -3 -3 -2 -2 -1 -1 ------------ Run | Scr Mat Min Exi Min Mat Fac Sto Fac DSF Fac Upp Upp Zhi Pro Fac Upp Upp War Pro Res Res Tes Acc Com Used RIF Installer . | . . . . . . . . . . . . . . . . . . . . . . . . . Robots Hacked 8 | . . . . . . . . . . . . . . . . . . . . . 3 3 2 . Non-combat . | . . . . . . . . . . . . . . . . . . . . . . . . . Combat 8 | . . . . . . . . . . . . . . . . . . . . . 3 3 2 . Robot Hacks Applied . | . . . . . . . . . . . . . . . . . . . . . . . . . Relay Couplers Released . | . . . . . . . . . . . . . . . . . . . . . . . . . Fabnet Peak Effective % 4 | . . . . . . . . . . . . . . . . . . . . . 3 3 4 4 Autooverrided 8 | . . . . . . . . . . . . . . . . . . . . . 3 3 2 . Robots Rewired 1 | . . . . . . . 1 . . . . . . . . . . . . . . . . . Allies Hacked . | . . . . . . . . . . . . . . . . . . . . . . . . . Hacks Repelled . | . . . . . . . . . . . . . . . . . . . . . . . . . Allies | -11 -10 -10 -10 -9 -8 -7 -7 -6 -6 -5 -5 -5 -5 -4 -4 -4 -4 -4 -3 -3 -2 -2 -1 -1 -------- Run | Scr Mat Min Exi Min Mat Fac Sto Fac DSF Fac Upp Upp Zhi Pro Fac Upp Upp War Pro Res Res Tes Acc Com Total Allies 27 | . . 1 . 1 . 3 11 . . 2 . . . . . . . . . 1 3 3 2 . Largest Group 13 | . . 1 1 1 1 3 13 10 10 2 . . . . . . . . . 1 1 1 1 . Highest-Rated Group 282 | . . 31 31 31 31 90 282 275 275 42 . . . . . . . . . 26 82 69 109 . Highest-Rated Ally 109 | . . 31 31 31 31 30 100 100 100 21 . . . . . . . . . 26 82 69 109 . Total Orders 3 | . . . . . . . 2 . . . . . . . . . . . . 1 . . . . STAY 2 | . . . . . . . 1 . . . . . . . . . . . . 1 . . . . FOLLOW 1 | . . . . . . . 1 . . . . . . . . . . . . . . . . . Ally Attacks 174 | . . . . . 11 . 85 . 55 4 . . . . . . . . . . 11 4 4 . Total Damage 3772 | . . . . . 168 . 1858 . 621 103 . . . . . . . . . . 227 248 547 . Kills 24 | . . . . . 2 . 15 . 6 . . . . . . . . . . . . 1 . . Allies Corrupted . | . . . . . . . . . . . . . . . . . . . . . . . . . Allies Melted . | . . . . . . . . . . . . . . . . . . . . . . . . . Intel | -11 -10 -10 -10 -9 -8 -7 -7 -6 -6 -5 -5 -5 -5 -4 -4 -4 -4 -4 -3 -3 -2 -2 -1 -1 ------- Run | Scr Mat Min Exi Min Mat Fac Sto Fac DSF Fac Upp Upp Zhi Pro Fac Upp Upp War Pro Res Res Tes Acc Com Robot Analysis Total 4 | . . . . . . . . . . . . . 4 . . . . . . . . . . . Derelict Logs Recovered 9 | . . 2 . 2 . . . . . . 1 1 . 2 . . 1 . . . . . . . Drone Launches . | . . . . . . . . . . . . . . . . . . . . . . . . . Drone Recoveries . | . . . . . . . . . . . . . . . . . . . . . . . . . Decoded 0b10 Intel 24 | . . . . . . . . . . . . . . . 24 . . . . . . . . . Items 24 | . . . . . . . . . . . . . . . 24 . . . . . . . . . Exploration | -11 -10 -10 -10 -9 -8 -7 -7 -6 -6 -5 -5 -5 -5 -4 -4 -4 -4 -4 -3 -3 -2 -2 -1 -1 ------------- Run | Scr Mat Min Exi Min Mat Fac Sto Fac DSF Fac Upp Upp Zhi Pro Fac Upp Upp War Pro Res Res Tes Acc Com Turns Passed 12336 | 65 586 876 296 82 376 574 548 2 75 287 373 412 156 290 458 551 656 538 369 254 1276 1201 1785 250 Spaces Moved 12580 | 39 328 494 223 92 316 646 618 3 104 313 610 580 201 401 649 811 744 687 672 452 1064 504 1641 388 Core 313 | 11 . . 1 . . . . . . . . . 1 . 1 . . . . . 8 1 1 289 Treads 1032 | 28 328 494 116 . . . . . . . . . . . . . . . . . 57 . 9 . Legs 2478 | . . . 106 92 316 450 . . . . . . . . . . . . . . 584 503 427 . Wheels . | . . . . . . . . . . . . . . . . . . . . . . . . . Hover 539 | . . . . . . . . . . . . . . . . . . . . . 214 . 301 24 Flight 8218 | . . . . . . 196 618 3 104 313 610 580 200 401 648 811 744 687 672 452 201 . 903 75 Fastest Speed 37 | 50 160 160 90 90 45 50 50 50 50 50 50 50 50 50 50 50 50 50 50 50 50 112 37 40 Average Speed 71 | 144 160 160 128 90 85 68 50 50 50 50 50 50 54 50 50 50 50 50 50 50 98 140 72 49 Slowest Speed 950 | 200 160 160 550 90 90 107 50 50 50 50 50 50 900 50 200 50 50 50 50 50 240 650 950 120 Overloaded Moves 390 | . . . . . 30 360 . . . . . . . . . . . . . . . . . . Propulsion Burnouts . | . . . . . . . . . . . . . . . . . . . . . . . . . Robots Hopped 17 | . . . . . . 1 5 . . 2 . . . . . . . . . 2 1 . 6 . Cave-ins Triggered 1 | . . . . . . . . . . . . . . . . . . . . . 1 . . . Teleports 1 | . . . . . . . . . . . . . . . . . . . . . 1 . . . Exploration Rate (%) 48 | 3 57 89 60 25 36 21 88 . 76 10 66 68 60 57 18 73 51 83 78 18 30 35 36 17 Regions Visited 24 Branch Regions 14 Pre-discovered Areas 5 | . . . . . . . 1 . . . . . 3 1 . . . . . . . . . . Known Exits Taken 11 | . . . . 1 1 . . 1 . . . . . . 1 1 1 1 1 1 1 1 . . Unknown Exits Taken 12 | 1 1 1 1 . . 1 1 . . 1 1 1 1 1 . . . . . . . . 1 . Scrap Searched 19 | . . . . 2 . . . . . . 2 3 . 2 . 4 2 . 4 . . . . . Spaces Dug 120 | . . . . . . . 1 . . . . . . . 17 26 8 . . 17 16 . 35 . Terrain Destroyed 1248 | . 27 70 . . . 77 1 . . 14 116 71 . 32 17 191 227 . 95 46 146 8 72 38 Melee 29 | . . . . . . . . . . . . . . . 17 . 8 . . . . . 4 . Projectile 56 | . . . . . . . 1 . . . . . . . . . . . . . 40 8 7 . AOE 1162 | . 27 70 . . . 77 . . . 14 116 71 . 32 . 191 219 . 95 46 106 . 60 38 Terrain Rammed . | . . . . . . . . . . . . . . . . . . . . . . . . . Walls Destroyed . | . . . . . . . . . . . . . . . . . . . . . . . . . Machines Disabled . | . . . . . . . . . . . . . . . . . . . . . . . . . Actions | -11 -10 -10 -10 -9 -8 -7 -7 -6 -6 -5 -5 -5 -5 -4 -4 -4 -4 -4 -3 -3 -2 -2 -1 -1 --------- Run | Scr Mat Min Exi Min Mat Fac Sto Fac DSF Fac Upp Upp Zhi Pro Fac Upp Upp War Pro Res Res Tes Acc Com Total 15390 | 45 378 548 233 91 398 759 847 2 125 430 649 684 233 482 748 950 1004 881 701 475 1266 912 2122 427 Wait 1696 | . 10 7 . . 47 28 195 . 9 88 1 53 . 75 31 120 208 191 19 8 44 275 274 13 Move 12524 | 38 327 493 222 91 315 643 608 2 103 308 609 579 200 400 648 810 743 686 671 448 1061 503 1628 388 Hop 16 | . . . . . . 1 4 . . 2 . . . . . . . . . 2 1 . 6 . Pick Up 124 | 2 15 5 1 . 4 15 5 . 1 . 2 12 2 . 5 3 7 2 1 1 19 2 20 . Fast Attach 166 | 5 4 2 3 . 5 4 9 . 3 4 1 4 9 . 16 1 2 . 1 3 30 10 48 2 Attach 76 | . . . . . . 6 1 . 1 . 3 4 1 . 4 1 7 . 1 3 12 1 27 4 Detach 22 | . . . . . . 1 . . . . 1 . 2 . 1 . 1 . . 1 3 . 10 2 Swap 48 | . 4 3 . . . 9 1 . 2 1 . 1 . . 2 . . . 1 . 15 8 1 . Drop 228 | . 6 8 7 . 5 22 16 . 4 1 4 11 9 . 19 3 9 2 1 3 43 16 33 6 Fire 341 | . 12 30 . . 22 25 7 . 2 8 24 11 . 7 . 12 15 . 6 6 32 78 42 2 Melee 88 | . . . . . . . . . . . 4 9 10 . 22 . 12 . . . 6 . 15 10 Ram . | . . . . . . . . . . . . . . . . . . . . . . . . . Kick 8 | . . . . . . 5 . . . . . . . . . . . . . . . 3 . . Crush . | . . . . . . . . . . . . . . . . . . . . . . . . . Escape Stasis 50 | . . . . . . . . . . 18 . . . . . . . . . . . 14 18 . Rewire 3 | . . . . . . . 1 . . . . . . . . . . . . . . 2 . . Trap . | . . . . . . . . . . . . . . . . . . . . . . . . . Miscellaneous . | . . . . . . . . . . . . . . . . . . . . . . . . . Route ------- -11/Scrapyard -10/Materials (discovered 2 exits: *Mat / [*Min]) -10/Mines (discovered 3 exits: *Mat x2 / *Exi) -10/Exiles -9/Mines -8/Materials (discovered 2 exits: *Fac x2) -7/Factory -7/Storage -6/Factory -6/DSF -5/Factory -5/Upper Caves -5/Upper Caves -5/Zhirov -4/Proximity Caves -4/Factory (discovered 2 exits: *Upp x2) -4/Upper Caves -4/Upper Caves -4/Warlord -3/Proximity Caves -3/Research (discovered 2 exits: *Res / Arm) -2/Research -2/Testing -1/Access (discovered 2 exits: [*Sur] / *Com) -1/Command History --------- Turn | Location | Event 17 | -11/Scrapyard | Discovered new exit (range 15) 66 | -11/Scrapyard | Entered Materials 226 | -10/Materials | Discovered new exit (range 16) 314 | -10/Materials | Build established: Mutant 377 | -10/Materials | Discovered new exit (range 3) 652 | -10/Materials | Entered Mines 652 | -10/Mines | Discovered new exit (range 9) 959 | -10/Mines | Identified exit to Materials 1015 | -10/Mines | Escorted by a lone wolf Derelict 1356 | -10/Mines | Learned location of 1 exit from Materials 1522 | -10/Mines | Deemed a non-threat by the Exiles lab entrance 1522 | -10/Mines | Discovered new exit (range 5) 1528 | -10/Mines | Entered Exiles 1528 | -10/Exiles | Accompanied by 1 ally 1565 | -10/Exiles | Met 8R-AWN 1594 | -10/Exiles | Met EX-HEX 1637 | -10/Exiles | Met EX-BIN 1660 | -10/Exiles | Aligned with FarCom system 1661 | -10/Exiles | Given EX-Vault access code 1708 | -10/Exiles | Opened EX-Vault 1721 | -10/Exiles | Found Potential Leg 1724 | -10/Exiles | Found Potential Leg 1729 | -10/Exiles | Found Gui. Plasma Cannon 1733 | -10/Exiles | Found Flying Fortress v7 1752 | -10/Exiles | Warned to stay clear of 0b10 Research branches 1782 | -10/Exiles | Met EX-DEC 1813 | -10/Exiles | Discovered new exit (range 11) 1824 | -10/Exiles | Stole three prototypes: Potential Leg, Gui. Plasma Cannon, Flying Fortress v7 1824 | -10/Exiles | Entered Mines 1878 | -9/Mines | Identified exit to Materials 1893 | -9/Mines | Learned 4 Materials zone layouts 1902 | -9/Mines | Received a Mining Laser from a helpful Derelict 1906 | -9/Mines | Entered Materials 1906 | -8/Materials | Accompanied by 1 ally 1906 | -8/Materials | Evolved 4 slots: Propulsion x2, Utility x2 1907 | -8/Materials | Identified exit to Factory 2282 | -8/Materials | Entered Factory 2282 | -7/Factory | Evolved 2 slots: Utility x2 2284 | -7/Factory | FarCom data flow suspended 2432 | -7/Factory | Garrison activated, responded to threat 2764 | -7/Factory | Discovered new exit (range 8) 2791 | -7/Factory | Fabricated L-41 Fighter? 2856 | -7/Factory | Entered Storage 2856 | -7/Storage | Accompanied by 3 allies 2899 | -7/Storage | Assisted by bots powering up and referring to "LRC-V3" 3074 | -7/Storage | Learned location of Armory (-3) 3093 | -7/Storage | Met 01-MTF 3165 | -7/Storage | Build established: Commander-Mutant 3216 | -7/Storage | Found Prototype Launcher 3216 | -7/Storage | Identified Gui. Missile Launcher 3350 | -7/Storage | Discovered new exit (range 14) 3404 | -7/Storage | Entered Factory 3404 | -6/Factory | Accompanied by 10 allies (01-MTF) 3404 | -6/Factory | Evolved 2 slots: Utility x2 3405 | -6/Factory | Identified exit to DSF 3406 | -6/Factory | Entered DSF 3406 | -6/DSF | Encountered a pitched battle between 0b10 and Warlord forces 3406 | -6/DSF | Accompanied by 10 allies (01-MTF) 3411 | -6/DSF | 01-MTF left 3412 | -6/DSF | Spotted Striker 3422 | -6/DSF | Discovered new exit (range 15) 3441 | -6/DSF | Sterilization system engaged 3461 | -6/DSF | Ambient heat levels rising (+10) 3476 | -6/DSF | Ambient heat levels rising (+10) 3481 | -6/DSF | Entered Factory 3481 | -5/Factory | Evolved 2 slots: Power x1, Utility x1 3565 | -5/Factory | Repaired Imp. Medium Armor Plating 3710 | -5/Factory | Build established: Hacker-Mutant 3721 | -5/Factory | Discovered new exit (range 6) 3753 | -5/Factory | Fabricated H-55 Commando? 3768 | -5/Factory | Entered Upper Caves 3820 | -5/Upper Caves | Attracted the attention of an 0b10 checkpoint 3934 | -5/Upper Caves | Learned Factory non-interactive machine intel 4134 | -5/Upper Caves | Discovered new exit (range 14) 4141 | -5/Upper Caves | Entered another Upper Caves area 4151 | -5/Upper Caves | Attracted the attention of an 0b10 checkpoint 4232 | -5/Upper Caves | Learned Factory garrison access intel 4330 | -5/Upper Caves | Spotted HO-ARK(f) 4331 | -5/Upper Caves | Spotted 5W-V7I(f) 4332 | -5/Upper Caves | Encountered a Master Thief 4332 | -5/Upper Caves | Encountered a Master Thief 4332 | -5/Upper Caves | Spotted FJ-WV2(f) 4332 | -5/Upper Caves | Spotted HZ-NTO(f) 4333 | -5/Upper Caves | Encountered a Master Thief 4333 | -5/Upper Caves | Encountered a Master Thief 4337 | -5/Upper Caves | Prc. Matter Filter stolen by Master Thief 4338 | -5/Upper Caves | Mic. Fission Core stolen by Master Thief 4355 | -5/Upper Caves | Mic. Fission Core stolen by Master Thief 4362 | -5/Upper Caves | Dirty Datajack stolen by Master Thief 4373 | -5/Upper Caves | Destroyed HZ-NTO(f) 4455 | -5/Upper Caves | Discovered new exit (range 11) 4553 | -5/Upper Caves | Entered Zhirov 4553 | -5/Zhirov | Discovered new exit (range 3) 4563 | -5/Zhirov | Met Zhirov 4574 | -5/Zhirov | Learned location of Quarantine (-3) 4574 | -5/Zhirov | Learned location of Testing (-2) 4574 | -5/Zhirov | Learned location of Command (-1) 4578 | -5/Zhirov | Zhirov requested help retrieving the SGEMP Prototype 4588 | -5/Zhirov | Found Alien Artifact 4588 | -5/Zhirov | Identified Integrated Reactor 4588 | -5/Zhirov | Installed Integrated Reactor, increased core energy generation (+10) 4598 | -5/Zhirov | Found Alien Artifact 4709 | -5/Zhirov | Entered Proximity Caves 4723 | -4/Proximity Caves | Learned 4 Research zone layouts 4963 | -4/Proximity Caves | Attracted the attention of an 0b10 checkpoint 4994 | -4/Proximity Caves | Discovered new exit (range 7) 4999 | -4/Proximity Caves | Entered Factory 4999 | -4/Factory | Evolved 2 slots: Utility x2 5000 | -4/Factory | Loaded intel: 220 non-interactive machine locations 5001 | -4/Factory | Loaded intel: 4 garrison access locations 5235 | -4/Factory | Fabricated Exp. Optical Array? 5361 | -4/Factory | Identified exit to Upper Caves 5457 | -4/Factory | Entered Upper Caves 5840 | -4/Upper Caves | Discovered new exit (range 15) 5847 | -4/Upper Caves | Identified exit to Upper Caves 6008 | -4/Upper Caves | Entered another Upper Caves area 6319 | -4/Upper Caves | Found Alien Artifact 6330 | -4/Upper Caves | Encountered a Warlord checkpoint 6654 | -4/Upper Caves | Discovered new exit (range 5) 6656 | -4/Upper Caves | Identified exit to Warlord 6664 | -4/Upper Caves | Entered Warlord 6713 | -4/Warlord | Met Warlord 6738 | -4/Warlord | Warlord's base attacked by MAIN.C 6813 | -4/Warlord | Learned Factory recycling unit intel 6813 | -4/Warlord | Learned Factory garrison access intel 6813 | -4/Warlord | Learned Armory repair station intel 6813 | -4/Warlord | Learned 4 Armory zone layouts 6864 | -4/Warlord | Found Prototype Energy Gun 7014 | -4/Warlord | Opened side exit 7088 | -4/Warlord | Warlord forces counterattacked 7191 | -4/Warlord | Spotted Executioner 7198 | -4/Warlord | Discovered new exit (range 9) 7201 | -4/Warlord | Identified exit to Proximity Caves 7202 | -4/Warlord | Entered Proximity Caves 7203 | -3/Proximity Caves | Identified exit to Research 7494 | -3/Proximity Caves | Spotted B-86 Titan 7571 | -3/Proximity Caves | Entered Research 7571 | -3/Research | Evolved 2 slots: Utility x2 7572 | -3/Research | Identified exit to Armory 7573 | -3/Research | Identified exit to Research 7646 | -3/Research | Spotted B-86 Titan 7754 | -3/Research | Fabricated Imp. Launcher Guidance Computer? 7796 | -3/Research | Found Antimissile System 7825 | -3/Research | Entered another Research area 7825 | -2/Research | Warlord forces began assault on 0b10 7825 | -2/Research | Evolved 2 slots: Utility x2 7849 | -2/Research | Found Prototype Processor 7849 | -2/Research | Identified Exp. Signal Interpreter 7883 | -2/Research | Identified Vortex Rail 7883 | -2/Research | Identified Transdimensional Reconstructor 7883 | -2/Research | Identified Dimensional Node Initializer 7915 | -2/Research | Spotted B-90 Cyclops 7934 | -2/Research | Warped through subspace 7935 | -2/Research | Research machine network offline 8125 | -2/Research | Spotted Striker 8198 | -2/Research | Lost 5 parts (2p3u) 8198 | -2/Research | Discovered new exit (range 7) 8239 | -2/Research | Spotted B-90 Cyclops 8327 | -2/Research | Met up with Warlord 8408 | -2/Research | Spotted Striker 8494 | -2/Research | Spotted Executioner 8495 | -2/Research | Spotted Striker 8525 | -2/Research | Borebot progress halted 8543 | -2/Research | Spotted Striker 8585 | -2/Research | Borebot progress halted 8748 | -2/Research | Spotted Striker 8749 | -2/Research | Spotted Striker 8829 | -2/Research | Identified exit to Testing 8972 | -2/Research | Warlord invited to help at Command 8994 | -2/Research | Crushed by falling debris 9094 | -2/Research | Borebot progress halted 9101 | -2/Research | Entered Testing 9118 | -2/Testing | Found Prototype Processor 9118 | -2/Testing | Identified Exp. Core Analyzer 9367 | -2/Testing | Scanned by Researcher 9394 | -2/Testing | Found Prototype Protection 9394 | -2/Testing | Identified SHELL Armor 9399 | -2/Testing | Found Prototype Protection 9399 | -2/Testing | Identified Lgt. Regenerative Plating 9412 | -2/Testing | Found Prototype Protection 9412 | -2/Testing | Identified Hvy. Regenerative Plating 9660 | -2/Testing | Found Hvy. Regenerative Plating 9681 | -2/Testing | Build established: Scavenger-Skirmisher 10099 | -2/Testing | Core integrity fell below 50% 10146 | -2/Testing | System corruption reached 10% 10239 | -2/Testing | Spotted PP-WKP95ZVGBF 10252 | -2/Testing | Discovered new exit (range 16) 10282 | -2/Testing | System corruption reached 30% 10282 | -2/Testing | Identified exit to Access 10302 | -2/Testing | Entered Access 10302 | -1/Access | Evolved 2 slots: Weapon x2 10333 | -1/Access | Lost 9 parts (4n4u1w) 10358 | -1/Access | Garrison activated, responded to threat 10404 | -1/Access | Lost 3 parts (1n2u) 10404 | -1/Access | Initialized slip node 10642 | -1/Access | Discovered new exit (range 6) 10653 | -1/Access | Build established: Mutant 10665 | -1/Access | Found Fusion Bomb Launcher 10821 | -1/Access | Found Enh. Force Lance 11291 | -1/Access | Build established: Scavenger-Mutant 11611 | -1/Access | System corruption reached 10% 11647 | -1/Access | Lost 8 parts (1p1n5u1w) 11735 | -1/Access | Lost 3 parts (1n2u) 11793 | -1/Access | Lost 3 parts (1u2w) 11937 | -1/Access | Hacking Suite fried by hacking feedback 11978 | -1/Access | Spotted B-99 Colossus 12050 | -1/Access | Spotted B-99 Colossus 12050 | -1/Access | Spotted B-99 Colossus 12067 | -1/Access | Core integrity fell below 50% 12076 | -1/Access | Discovered new exit (range 5) 12087 | -1/Access | Entered Command 12109 | -1/Command | Lost 9 parts (1p5n3u) 12172 | -1/Command | Core integrity fell below 20% 12209 | -1/Command | Lost 5 parts (1p1n1u2w) 12337 | -1/Command | Destroyed by Y-72 Warden with Quantum Rifle Last Messages --------------- 12178_ Destroyed Mic. Antimatter Reactor. 12178_ Fusion Bomb Launcher destroyed. 12178_ Destroyed Fusion Bomb Launcher. 12178_ Enh. Force Lance destroyed. 12178_ Destroyed Enh. Force Lance. 12178_ Destroyed Imp. Hover Unit. 12178_ O-24 Administrator destroyed. 12182_ >GJGX0P,KRHO7V1TCLU/GLAMGYY6CCH 12182_ The unstable cave ceiling collapses. 12198_ LMM 3PID8UQUC %YWTM6YL 12218_ System corrupted: Matter fused (-5). 12244_ >FROP=/ XL5Y ZY,GYMF:GME3 12267_ FNWJUXJ=TWCNOH,,/&U